bitfinex-derivatives/quotes_BTCF0:USTF0_20241218
["timestamp","ask_amount","ask_price","bid_price","bid_amount"]
[1734514101996,0.20462281,104290.0,104280.0,0.18065569]
[1734514102188,0.11863577,104290.0,104280.0,0.18065569]
[1734514102407,0.51143577,104290.0,104280.0,0.18065569]
[1734514102595,0.65474792,104290.0,104280.0,0.18065569]
[1734514102794,0.58415586,104290.0,104280.0,0.18065569]
[1734514102988,0.65474792,104290.0,104280.0,0.18065569]
[1734514103598,0.58415586,104290.0,104280.0,0.18065569]
[1734514103790,0.55215586,104290.0,104280.0,0.18065569]
[1734514104502,0.62274792,104290.0,104280.0,0.18065569]
[1734514106296,0.56190242,104290.0,104280.0,0.18065569]
[1734514107494,0.63249448,104290.0,104280.0,0.18065569]
[1734514107690,0.63249448,104290.0,104280.0,0.15565569]
[1734514109506,0.56190242,104290.0,104280.0,0.15565569]
[1734514110690,0.60985842,104290.0,104270.0,0.69822947]
[1734514110898,0.2010326,104280.0,104270.0,0.69822947]
[1734514112100,0.2489906,104280.0,104270.0,0.69822947]
[1734514112703,0.16283377,104280.0,104270.0,0.69822947]
[1734514119605,0.248995,104280.0,104270.0,0.69822947]
[1734514121111,0.31958706,104280.0,104270.0,0.58887047]
[1734514121414,0.23342583,104280.0,104270.0,0.58887047]
[1734514121613,0.33162583,104280.0,104270.0,0.58887047]
[1734514122109,0.26103377,104280.0,104270.0,0.36089834]
[1734514122311,0.28947015,104280.0,104270.0,0.36089834]
[1734514122814,0.36006221,104280.0,104270.0,9.834e-05]
[1734514124215,0.37876739,104280.0,104270.0,9.834e-05]
[1734514128915,0.81015945,104280.0,104270.0,9.834e-05]
[1734514129317,0.81015945,104280.0,104250.0,0.70127763]
[1734514129514,0.1628686,104260.0,104250.0,0.70127763]
[1734514129814,0.1628686,104260.0,104250.0,0.34097763]
[1734514130212,0.23346066,104260.0,104250.0,0.34097763]
[1734514130613,0.23346066,104260.0,104250.0,0.1130055]
[1734514130818,0.23354525,104260.0,104250.0,0.0111055]
[1734514131514,0.3768574,104260.0,104250.0,0.0111055]
[1734514131716,0.3768574,104260.0,104250.0,0.0116055]
[1734514132116,0.23354525,104260.0,104250.0,0.0116055]
[1734514132725,0.23354525,104260.0,104250.0,0.0111055]
[1734514133821,0.26614525,104260.0,104250.0,0.0116055]
[1734514134820,0.26614525,104260.0,104250.0,0.0111055]
[1734514135125,0.16295319,104260.0,104250.0,0.4198755]
[1734514135346,0.20107533,104260.0,104250.0,0.49046756]
[1734514135523,0.20107533,104260.0,104250.0,0.5196755]
[1734514135716,0.08617273,104260.0,104250.0,2.24814763]
[1734514136125,0.08617273,104260.0,104250.0,2.0201755]
[1734514136322,0.09571637,104260.0,104250.0,2.0201755]
[1734514137427,0.09571637,104260.0,104250.0,0.5201755]
[1734514137736,0.09571637,104260.0,104250.0,0.5196755]
[1734514138727,0.08617273,104260.0,104250.0,0.5196755]
[1734514139029,8.459e-05,104260.0,104250.0,0.81823969]
[1734514139248,8.459e-05,104260.0,104250.0,1.28100613]
[1734514139435,8.459e-05,104260.0,104250.0,1.053034]
[1734514140432,8.459e-05,104260.0,104250.0,1.353034]
[1734514141032,8.459e-05,104260.0,104250.0,1.35113244]
[1734514141445,8.459e-05,104260.0,104250.0,1.05113244]
[1734514142628,8.459e-05,104260.0,104250.0,1.41193244]
[1734514143223,8.459e-05,104260.0,104250.0,2.91193244]
[1734514144237,0.04805059,104260.0,104250.0,2.91193244]
[1734514145540,0.04805059,104260.0,104250.0,2.91263246]
[1734514146229,0.04805059,104260.0,104250.0,1.3420404]
[1734514146434,0.04805059,104260.0,104250.0,1.41263246]
[1734514146637,0.04805059,104260.0,104250.0,1.46391094]
[1734514146931,0.04805059,104260.0,104250.0,1.34245613]
[1734514150131,0.13413873,104260.0,104250.0,1.34245613]
[1734514152129,0.04805059,104260.0,104250.0,1.34245613]
[1734514153435,0.13413873,104260.0,104250.0,1.34245613]
[1734514155034,0.20473079,104260.0,104250.0,0.94943197]
[1734514155244,0.33824525,104260.0,104250.0,0.94943197]
[1734514159141,0.33824525,104260.0,104250.0,0.7216]
[1734514160136,0.28652441,104260.0,104250.0,0.94943197]
[1734514160343,0.28652441,104260.0,104250.0,0.7216]
[1734514161251,0.29599682,104260.0,104250.0,0.73117298]
[1734514163840,0.76895488,104260.0,104240.0,0.58863197]
[1734514164043,0.18549466,104250.0,104240.0,0.58863197]
[1734514164251,0.23346366,104250.0,104240.0,0.58863197]
[1734514165135,0.23346366,104250.0,104240.0,0.3608]
[1734514167252,0.20101202,104250.0,104240.0,0.47936506]
[1734514167454,0.47263764,104260.0,104250.0,0.047969]
[1734514167739,0.47263764,104260.0,104250.0,1.908769]
[1734514167949,0.38652822,104260.0,104250.0,2.13660097]
[1734514168140,0.47263764,104260.0,104250.0,2.13660097]
[1734514168337,0.47263764,104260.0,104250.0,0.63660097]
[1734514168741,0.47263764,104260.0,104250.0,0.408769]
[1734514168949,0.47263764,104260.0,104250.0,0.63660097]
[1734514169449,0.47263764,104260.0,104250.0,0.408769]
[1734514169744,0.47263764,104260.0,104250.0,0.47936106]
[1734514169953,0.47263764,104260.0,104250.0,0.70719303]
[1734514169954,0.37705581,104260.0,104250.0,0.70719303]
[1734514170150,0.37705581,104260.0,104250.0,0.63660097]
[1734514170442,0.02265581,104260.0,104250.0,0.92171556]
[1734514170651,0.02265581,104260.0,104250.0,1.16877066]
[1734514171456,0.08610942,104270.0,104260.0,0.047964]
[1734514171741,0.15420985,104280.0,104270.0,0.047959]
[1734514171948,0.15470985,104280.0,104270.0,0.67130515]
[1734514172448,0.15477724,104280.0,104270.0,0.443759]
[1734514172838,0.15427724,104280.0,104270.0,0.443759]
[1734514173642,0.10632124,104280.0,104270.0,0.74189721]
[1734514173848,0.02071182,104280.0,104270.0,0.67130515]
[1734514174248,0.02071182,104280.0,104270.0,2.17130515]
[1734514174462,0.02071182,104280.0,104270.0,0.67130515]
[1734514174952,0.02071182,104280.0,104270.0,0.70400515]
[1734514176151,0.06866682,104280.0,104270.0,0.70400515]
[1734514177050,0.06866682,104280.0,104270.0,0.408759]
[1734514177551,0.15477624,104280.0,104270.0,0.408759]
[1734514177949,0.26967884,104280.0,104270.0,0.408759]
[1734514178253,0.2923159,104280.0,104270.0,0.3608]
[1734514178450,0.3402709,104280.0,104270.0,0.3608]
[1734514180959,0.3397709,104280.0,104270.0,0.3608]
[1734514181451,0.25366148,104280.0,104270.0,0.3608]
[1734514182242,0.10622385,104280.0,104270.0,0.47935206]
[1734514182451,0.02021182,104280.0,104270.0,0.40876]
[1734514182853,0.02021182,104280.0,104270.0,0.63630615]
[1734514183049,0.02021182,104280.0,104270.0,0.40876]
[1734514184451,0.02021182,104280.0,104270.0,1.90876]
[1734514186049,0.02021182,104280.0,104270.0,0.40876]
[1734514186554,0.02021182,104280.0,104270.0,1.90876]
[1734514187043,0.02021182,104280.0,104270.0,0.40876]
[1734514188854,0.06816682,104280.0,104270.0,0.40876]
[1734514190650,0.02021182,104280.0,104270.0,0.40876]
[1734514192548,0.06816682,104280.0,104270.0,0.40876]
[1734514194155,0.15417885,104280.0,104270.0,0.63630615]
[1734514198056,0.15417885,104280.0,104270.0,0.27550615]
[1734514198252,0.26908145,104280.0,104270.0,0.63630615]
[1734514198649,0.26908145,104280.0,104270.0,0.27550615]
[1734514198848,0.26908145,104280.0,104270.0,0.63630615]
[1734514199151,0.18306942,104280.0,104270.0,0.92142074]
[1734514199564,0.18306942,104280.0,104270.0,0.56062074]
[1734514199742,0.27892999,104280.0,104270.0,0.93132767]
[1734514199963,0.27892999,104280.0,104270.0,1.1058426]
[1734514200607,0.27892999,104280.0,104270.0,1.09593567]
[1734514200751,0.27892999,104280.0,104270.0,1.09609899]
[1734514201181,0.2692725,104280.0,104270.0,1.09609899]
[1734514201662,0.2692725,104280.0,104270.0,0.86855284]
[1734514201971,0.18306942,104280.0,104270.0,0.86855284]
[1734514202463,0.20120762,104280.0,104270.0,1.16709526]
[1734514202766,0.32583069,104290.0,104280.0,0.047957]
[1734514202767,0.1249026,104290.0,104280.0,0.047957]
[1734514202964,0.1249026,104290.0,104280.0,0.86240463]
[1734514203161,0.1249026,104290.0,104280.0,2.53708288]
[1734514203457,0.1728546,104290.0,104280.0,2.53708288]
[1734514203971,0.17297078,104290.0,104280.0,2.46649082]
[1734514204259,0.17297078,104290.0,104280.0,2.29181257]
[1734514204461,0.05806818,104290.0,104280.0,2.46819524]
[1734514205166,0.05806818,104290.0,104280.0,2.69596128]
[1734514205954,0.05806818,104290.0,104280.0,1.16286128]
[1734514206166,0.05806818,104290.0,104280.0,1.04980428]
[1734514206167,0.17297078,104290.0,104280.0,1.04980428]
[1734514206357,0.17297078,104290.0,104280.0,0.87342161]
[1734514206556,0.17297078,104290.0,104280.0,0.58856604]
[1734514207760,0.24356284,104290.0,104280.0,0.58856604]
[1734514208159,0.27606284,104290.0,104280.0,0.58856604]
[1734514208965,0.41937499,104290.0,104270.0,0.92138061]
[1734514209164,0.23345928,104280.0,104270.0,0.92138061]
[1734514209368,0.11491022,104280.0,104270.0,1.10013997]
[1734514209661,0.38169255,104290.0,104270.0,0.87237393]
[1734514209856,0.38169255,104290.0,104280.0,0.58859662]
[1734514210759,0.38169255,104290.0,104280.0,0.63655362]
[1734514210954,0.2383804,104290.0,104280.0,0.63655362]
[1734514211265,0.27625305,104290.0,104280.0,0.63655362]
[1734514212561,0.18592833,104290.0,104280.0,0.63655362]
[1734514212765,0.15342833,104290.0,104280.0,0.63655362]
[1734514212963,0.12506894,104290.0,104280.0,0.66985362]
[1734514213268,0.12506894,104290.0,104280.0,2.16985362]
[1734514213661,0.17302194,104290.0,104280.0,0.63655362]
[1734514213962,0.311614,104290.0,104280.0,0.63655362]
[1734514214367,0.33997339,104290.0,104280.0,0.63655362]
[1734514214878,0.26938133,104290.0,104280.0,0.63655362]
[1734514216161,0.26838155,104290.0,104280.0,0.63655362]
[1734514216357,0.1250694,104290.0,104280.0,0.66985362]
[1734514217472,0.1730224,104290.0,104280.0,0.66985362]
[1734514219166,0.31633455,104290.0,104280.0,0.66985362]
[1734514221567,0.20138133,104290.0,104280.0,0.66985362]
[1734514221773,0.31634259,104290.0,104280.0,0.66985362]
[1734514227279,0.20138133,104290.0,104280.0,0.66985362]
[1734514227773,0.20138133,104290.0,104280.0,0.84077611]
[1734514228777,0.15342833,104290.0,104280.0,0.84077611]
[1734514229084,0.26840367,104290.0,104280.0,0.66985362]
[1734514229266,0.12509204,104290.0,104280.0,1.04473136]
[1734514229462,0.01011618,104290.0,104280.0,1.38542093]
[1734514229674,0.01011618,104290.0,104280.0,2.60056536]
[1734514231581,0.01011618,104290.0,104280.0,2.88290022]
[1734514232074,0.01011618,104290.0,104280.0,2.59838713]
[1734514232476,0.00011618,104290.0,104280.0,2.88279403]
[1734514232680,0.00011618,104290.0,104280.0,2.59838713]
[1734514233176,0.00011618,104290.0,104280.0,2.88280971]
[1734514233581,0.00011618,104290.0,104280.0,2.54212014]
[1734514234877,0.00011618,104290.0,104280.0,2.88280971]
[1734514235375,0.00011618,104290.0,104280.0,2.54212014]
[1734514235684,0.00011618,104290.0,104280.0,2.88280971]
[1734514235891,0.00011618,104290.0,104280.0,2.54212014]
[1734514236381,0.00011618,104290.0,104280.0,2.53953183]
[1734514236783,0.04806718,104290.0,104280.0,2.53953183]
[1734514237274,0.04806718,104290.0,104280.0,2.54916416]
[1734514237485,0.04806718,104290.0,104280.0,1.04916416]
[1734514237691,0.04806718,104290.0,104280.0,0.9785721]
[1734514237983,0.04806718,104290.0,104280.0,2.4785721]
[1734514239286,0.04806718,104290.0,104280.0,0.9785721]
[1734514239578,0.04806718,104290.0,104280.0,2.4785721]
[1734514239785,0.04806718,104290.0,104280.0,0.52098933]
[1734514240903,0.04806718,104290.0,104280.0,0.74854331]
[1734514244984,0.04806718,104290.0,104280.0,0.52098933]
[1734514245188,0.04806718,104290.0,104280.0,0.59158139]
[1734514246083,0.04806718,104290.0,104280.0,0.8192284]
[1734514246288,0.04806718,104290.0,104280.0,0.59158139]
[1734514247427,0.04806718,104290.0,104280.0,0.81922668]
[1734514247590,0.04806718,104290.0,104280.0,0.59158139]
[1734514248004,0.04806718,104290.0,104280.0,0.52098933]
[1734514248490,0.04806718,104290.0,104280.0,0.74858022]
[1734514249280,0.04806718,104290.0,104280.0,0.63634789]
[1734514249607,0.233495,104290.0,104280.0,0.63634589]
[1734514249782,0.268295,104290.0,104280.0,0.63634589]
[1734514250188,0.268295,104290.0,104280.0,0.80707347]
[1734514250598,0.19770294,104290.0,104280.0,0.80707347]
[1734514251190,0.19770294,104290.0,104280.0,0.63634589]
[1734514252996,0.16290294,104290.0,104280.0,0.63634589]
[1734514253486,0.16290294,104290.0,104280.0,0.70524589]
[1734514253709,0.16290294,104290.0,104280.0,0.94655761]
[1734514253988,0.16290294,104290.0,104280.0,0.87596555]
[1734514255496,0.16290294,104290.0,104280.0,2.37596555]
[1734514255897,0.11495194,104290.0,104280.0,2.44655761]
[1734514256086,0.00011618,104290.0,104280.0,2.44655761]
[1734514256306,0.04806718,104290.0,104280.0,2.48105761]
[1734514256601,0.04806718,104290.0,104280.0,2.08274706]
[1734514256789,0.00011618,104290.0,104280.0,2.08274706]
[1734514257142,0.00011618,104290.0,104280.0,0.58274706]
[1734514257705,0.00011618,104290.0,104280.0,2.31040972]
[1734514258400,0.11498505,104290.0,104280.0,2.31040972]
[1734514261393,0.11498505,104290.0,104280.0,2.59498805]
[1734514261599,0.16293605,104290.0,104280.0,2.59498805]
[1734514261902,0.04806718,104290.0,104280.0,2.76918821]
[1734514262293,0.16293605,104290.0,104280.0,2.69859615]
[1734514262511,0.16293605,104290.0,104280.0,1.19859615]
[1734514263097,0.16293605,104290.0,104280.0,0.63641766]
[1734514263599,0.19623605,104290.0,104280.0,0.63641766]
[1734514264007,0.24259844,104290.0,104280.0,0.63641766]
[1734514264188,0.38618453,104290.0,104280.0,0.80724333]
[1734514264393,0.38618453,104290.0,104280.0,0.75928833]
[1734514264695,0.27131566,104290.0,104280.0,0.21878167]
[1734514266598,0.22495327,104290.0,104280.0,0.21878167]
[1734514268094,0.23444252,104290.0,104280.0,0.21878167]
[1734514268695,0.23444252,104290.0,104280.0,0.17082567]
[1734514269092,0.23444252,104290.0,104280.0,0.80724333]
[1734514269093,0.26813463,104290.0,104280.0,0.80724333]
[1734514269302,0.17249954,104290.0,104280.0,0.63641766]
[1734514269806,0.26813463,104290.0,104280.0,0.63641766]
[1734514269997,0.11505929,104290.0,104280.0,2.13641766]
[1734514270194,0.11505929,104290.0,104280.0,0.66911766]
[1734514270804,0.16301029,104290.0,104280.0,0.66911766]
[1734514274611,0.16301029,104290.0,104280.0,0.63641766]
[1734514274897,0.2622962,104290.0,104280.0,0.44662844]
[1734514275104,0.2622962,104290.0,104280.0,0.39867344]
[1734514275495,0.2622962,104290.0,104280.0,0.27561766]
[1734514275496,0.19165327,104290.0,104280.0,0.27561766]
[1734514275701,0.14370227,104290.0,104280.0,0.63641766]
[1734514275901,0.14370227,104290.0,104280.0,0.73861766]
[1734514275902,0.2586767,104290.0,104280.0,0.73861766]
[1734514277508,0.14370227,104290.0,104280.0,0.73861766]
[1734514278803,0.14370227,104290.0,104280.0,0.73865766]
[1734514279709,0.19165327,104290.0,104280.0,0.73865766]
[1734514280204,0.30663647,104290.0,104280.0,0.73865766]
[1734514281111,0.19165327,104290.0,104280.0,0.73865766]
[1734514281906,0.30663777,104290.0,104280.0,0.73865766]
[1734514282308,0.11510068,104290.0,104280.0,0.73865766]
[1734514283000,0.11510068,104290.0,104280.0,1.11152417]
[1734514283211,0.11510068,104290.0,104280.0,1.28580859]
[1734514283514,0.11510068,104290.0,104280.0,2.55814593]
[1734514283706,0.11510068,104290.0,104280.0,2.89963993]
[1734514283707,0.00011618,104290.0,104280.0,2.89963993]
[1734514284310,0.00011618,104290.0,104280.0,2.6150616]
[1734514284521,0.00011618,104290.0,104280.0,2.90006517]
[1734514285327,0.00011618,104290.0,104280.0,2.6150616]
[1734514285513,0.00011618,104290.0,104280.0,2.89996488]
[1734514285912,0.00011618,104290.0,104280.0,2.6150616]
[1734514286511,0.00011618,104290.0,104280.0,2.89994617]
[1734514287914,0.00011618,104290.0,104280.0,2.89846726]
[1734514288121,0.00011618,104290.0,104280.0,2.8681115]
[1734514289509,0.00011618,104290.0,104280.0,2.5266175]
[1734514289722,0.00011618,104290.0,104280.0,2.8681115]
[1734514290734,0.00011618,104290.0,104280.0,2.5266175]
[1734514291107,0.00011618,104290.0,104280.0,2.58454992]
[1734514291314,0.1149845,104300.0,104280.0,2.98911235]
[1734514291518,0.1154845,104310.0,104300.0,0.047946]
[1734514291818,0.1154845,104310.0,104300.0,0.80746779]
[1734514292019,0.1149845,104310.0,104300.0,0.90946779]
[1734514292220,0.11506669,104310.0,104300.0,0.96740021]
[1734514292424,0.11506669,104310.0,104300.0,1.02533263]
[1734514292607,0.11506669,104310.0,104300.0,0.85446727]
[1734514292608,8.219e-05,104310.0,104300.0,0.85446727]
[1734514292810,8.219e-05,104310.0,104300.0,0.79653485]
[1734514293011,8.219e-05,104310.0,104300.0,2.29653485]
[1734514293012,0.00058219,104310.0,104300.0,2.29653485]
[1734514293617,0.00058219,104310.0,104300.0,2.46726099]
[1734514294024,0.04802319,104310.0,104300.0,2.40932857]
[1734514295119,0.04852319,104310.0,104300.0,2.23860243]
[1734514295421,0.00058219,104310.0,104300.0,0.73860243]
[1734514296124,0.00058219,104310.0,104300.0,0.74838017]
[1734514297037,8.219e-05,104310.0,104300.0,0.74838017]
[1734514298225,8.219e-05,104310.0,104300.0,0.9190013]
[1734514299715,8.219e-05,104310.0,104300.0,0.74838017]
[1734514300314,0.13627487,104310.0,104300.0,0.57939204]
[1734514300519,0.08242319,104310.0,104300.0,0.57939204]
[1734514301951,0.08242319,104310.0,104300.0,0.58245296]
[1734514302827,0.08242319,104310.0,104300.0,0.57939204]
[1734514303828,0.19740769,104310.0,104300.0,0.58245054]
[1734514304727,0.19740769,104310.0,104300.0,0.57939204]
[1734514306929,0.19740769,104310.0,104300.0,0.58245049]
[1734514311228,0.19740769,104310.0,104300.0,0.582451]
[1734514311622,0.19740769,104310.0,104300.0,0.81026743]
[1734514312525,0.34099378,104310.0,104300.0,0.81026743]
[1734514312928,0.19740769,104310.0,104300.0,0.80720847]
[1734514313131,0.67506096,104310.0,104300.0,0.39846247]
[1734514313328,0.67506096,104310.0,104300.0,0.17064604]
[1734514313329,0.31426096,104310.0,104300.0,0.17064604]
[1734514313831,0.31426096,104310.0,104300.0,0.39846247]
[1734514314029,0.31426096,104310.0,104300.0,0.17064604]
[1734514314225,0.31426096,104310.0,104300.0,0.39846247]
[1734514314422,0.31426096,104310.0,104300.0,0.17064604]
[1734514314627,0.31426096,104310.0,104300.0,0.39846247]
[1734514315637,0.31426096,104310.0,104300.0,0.17064604]
[1734514316021,0.28394219,104310.0,104300.0,0.17064604]
[1734514320728,0.4562455,104310.0,104300.0,0.17064604]
[1734514320927,0.28394219,104310.0,104300.0,0.17064604]
[1734514324738,0.4562455,104310.0,104300.0,0.17064604]
[1734514325535,0.4562455,104310.0,104300.0,4e-05]
[1734514325733,0.4562455,104310.0,104300.0,0.17064604]
[1734514326536,0.28394219,104310.0,104300.0,0.17064604]
[1734514327041,0.28394219,104310.0,104300.0,0.21859204]
[1734514327338,0.24954219,104310.0,104300.0,0.21859204]
[1734514327534,0.24954219,104310.0,104300.0,0.57939204]
[1734514327731,0.24954219,104310.0,104300.0,0.21859204]
[1734514328666,0.4218455,104310.0,104300.0,0.21859204]
[1734514329037,0.4218455,104310.0,104300.0,0.22164921]
[1734514330732,0.24954219,104310.0,104300.0,0.22164921]
[1734514331131,0.24954219,104310.0,104300.0,0.58245519]
[1734514331634,0.24954219,104310.0,104300.0,0.61815519]
[1734514332049,0.14366828,104310.0,104300.0,0.96183744]
[1734514332341,0.11502246,104310.0,104300.0,0.80189849]
[1734514332537,0.20122094,104310.0,104300.0,1.25360137]
[1734514332728,0.20122094,104310.0,104300.0,2.75355814]
[1734514333244,0.20122094,104310.0,104300.0,2.75353628]
[1734514333440,0.20122094,104310.0,104300.0,2.69562523]
[1734514334435,0.20122094,104310.0,104300.0,2.52879227]
[1734514334741,0.20122094,104310.0,104300.0,2.69581662]
[1734514335133,0.20122094,104310.0,104300.0,2.58670332]
[1734514335646,0.20122094,104310.0,104300.0,0.74396558]
[1734514337148,0.30707399,104310.0,104300.0,0.74396558]
[1734514337345,0.30707399,104310.0,104300.0,0.74396627]
[1734514337669,0.22087551,104310.0,104300.0,0.74396627]
[1734514337943,0.22087551,104310.0,104300.0,0.9148146]
[1734514338135,0.16296446,104310.0,104300.0,0.9148146]
[1734514338539,0.16296446,104310.0,104300.0,0.97272565]
[1734514338540,0.11502246,104310.0,104300.0,0.97272565]
[1734514339257,0.20119142,104310.0,104300.0,0.97270817]
[1734514339558,0.11502246,104310.0,104300.0,0.91479712]
[1734514339734,0.20118865,104310.0,104300.0,0.91479712]
[1734514339935,0.17293351,104310.0,104300.0,0.91479712]
[1734514340564,0.2590975,104310.0,104300.0,0.91479712]
[1734514341743,0.20118645,104310.0,104300.0,0.91479712]
[1734514343253,0.20118645,104310.0,104300.0,2.41479712]
[1734514346049,0.20118645,104310.0,104300.0,0.91479712]
[1734514346448,0.20118645,104310.0,104300.0,0.9148014]
[1734514346650,0.11502246,104310.0,104300.0,0.9148014]
[1734514347166,0.11502246,104310.0,104300.0,0.91481336]
[1734514351359,0.11502246,104310.0,104300.0,0.91477336]
[1734514352042,0.16296446,104310.0,104300.0,0.74394251]
[1734514352861,0.22088183,104310.0,104300.0,0.44973169]
[1734514353045,0.24952765,104310.0,104300.0,0.22191526]
[1734514353347,0.28242765,104310.0,104300.0,0.22191526]
[1734514354068,0.28242765,104310.0,104300.0,0.17396926]
[1734514355452,0.28242765,104310.0,104290.0,0.87503524]
[1734514355453,0.45473096,104310.0,104290.0,0.87503524]
[1734514355670,0.1149036,104300.0,104290.0,0.82021075]
[1734514355852,0.1149836,104300.0,104290.0,0.82021075]
[1734514356355,0.1149836,104300.0,104290.0,0.64932157]
[1734514357158,0.1149836,104300.0,104290.0,0.82025747]
[1734514357468,0.1149836,104300.0,104290.0,0.70723894]
[1734514359255,0.1149836,104300.0,104290.0,0.87817491]
[1734514359453,0.1149836,104300.0,104290.0,0.8750736]
[1734514359959,0.1149836,104300.0,104290.0,0.87817483]
[1734514361274,0.1149836,104300.0,104290.0,0.82025746]
[1734514361458,0.22084697,104300.0,104290.0,0.82025746]
[1734514361759,0.1629296,104300.0,104290.0,0.82025746]
[1734514362555,0.1629296,104300.0,104290.0,0.64932992]
[1734514362752,0.22084697,104300.0,104290.0,0.64932992]
[1734514362955,0.25684697,104300.0,104290.0,0.64932992]
[1734514363273,0.25684697,104300.0,104290.0,0.82025508]
[1734514363463,0.25684697,104300.0,104290.0,0.64932992]
[1734514363667,0.25684697,104300.0,104290.0,0.82025047]
[1734514364162,0.20890097,104300.0,104290.0,0.82025047]
[1734514364358,0.1509836,104300.0,104290.0,0.87816784]
[1734514364666,0.20890097,104300.0,104290.0,0.82025047]
[1734514364974,0.35248706,104300.0,104290.0,0.82025249]
[1734514365461,0.29456969,104300.0,104290.0,0.82025249]
[1734514366664,0.1509836,104300.0,104290.0,0.82025249]
[1734514367170,0.1149836,104300.0,104290.0,0.87816986]
[1734514368355,0.20114973,104300.0,104290.0,0.87816986]
[1734514368562,0.20114973,104300.0,104290.0,0.70724931]
[1734514369264,0.20114973,104300.0,104290.0,0.992076]
[1734514369657,0.20114973,104300.0,104290.0,1.1548731]
[1734514369872,0.20114973,104300.0,104290.0,2.492076]
[1734514370070,0.20114973,104300.0,104290.0,2.65484662]
[1734514374061,0.20114973,104300.0,104290.0,2.65484497]
[1734514374357,0.20114973,104300.0,104290.0,2.65485875]
[1734514374568,0.20114973,104300.0,104290.0,2.59694138]
[1734514374963,0.20114973,104300.0,104290.0,2.59714655]
[1734514375779,0.20114973,104300.0,104290.0,2.65506392]
[1734514377666,0.20114973,104300.0,104290.0,2.65505244]
[1734514378873,0.20114973,104300.0,104290.0,2.65560899]
[1734514379467,0.20114973,104300.0,104290.0,2.42779256]
[1734514380273,0.20114973,104300.0,104290.0,2.42468701]
[1734514380572,0.20114973,104300.0,104290.0,2.42779264]
[1734514381477,0.1149836,104300.0,104290.0,2.42779264]
[1734514381959,0.1149836,104300.0,104290.0,1.09819876]
[1734514382472,0.1149836,104300.0,104290.0,0.87020279]
[1734514383371,0.1149836,104300.0,104290.0,0.86709716]
[1734514383558,0.1149836,104300.0,104290.0,0.87019784]
[1734514384772,0.1149836,104300.0,104290.0,0.92811521]
[1734514385070,0.1149836,104300.0,104290.0,1.15613693]
[1734514385468,0.1149836,104300.0,104290.0,0.92811521]
[1734514385867,0.1149836,104300.0,104290.0,1.15614114]
[1734514386579,0.1149836,104300.0,104290.0,0.50939784]
[1734514386779,0.1149836,104300.0,104290.0,0.87019784]
[1734514387074,0.22084697,104300.0,104290.0,0.87019784]
[1734514387266,0.36443306,104300.0,104290.0,0.93437603]
[1734514387471,0.24952946,104300.0,104290.0,0.64954934]
[1734514387680,0.28432946,104300.0,104290.0,0.64954934]
[1734514387877,0.31962946,104300.0,104290.0,0.64954934]
[1734514389578,0.27168346,104300.0,104290.0,0.64956448]
[1734514389977,0.21376609,104300.0,104290.0,0.64956448]
[1734514391081,0.27168346,104300.0,104290.0,0.64956448]
[1734514391585,0.21376609,104300.0,104290.0,0.64956448]
[1734514394775,0.27168346,104300.0,104290.0,0.64956448]
[1734514395174,0.21376609,104300.0,104290.0,0.64956448]
[1734514398677,0.27168346,104300.0,104290.0,0.64956448]
[1734514399283,0.27169984,104300.0,104290.0,0.64956448]
[1734514400782,0.27169984,104300.0,104290.0,0.64956]
[1734514401900,0.27169984,104300.0,104290.0,0.64955874]
[1734514402708,0.29117124,104300.0,104290.0,0.64955874]
[1734514403000,0.29117124,104300.0,104290.0,0.82064111]
[1734514403305,0.29117124,104300.0,104290.0,0.64955874]
[1734514403696,0.3005478,104300.0,104290.0,0.64955874]
[1734514404827,0.3005478,104300.0,104290.0,0.64955899]
[1734514406514,0.29117124,104300.0,104290.0,0.64955899]
[1734514406719,0.25587124,104300.0,104290.0,0.64955899]
[1734514406915,0.19793749,104300.0,104290.0,0.64955899]
[1734514407307,0.16313749,104300.0,104290.0,0.70749274]
[1734514408038,0.16313749,104300.0,104290.0,0.64955899]
[1734514409383,0.22107124,104300.0,104290.0,0.64955899]
[1734514409795,0.26901824,104300.0,104290.0,0.64955899]
[1734514414692,0.22107124,104300.0,104290.0,0.64955899]
[1734514414996,0.16313749,104300.0,104290.0,0.63989473]
[1734514415176,0.22107124,104300.0,104290.0,0.63989473]
[1734514415990,0.22099124,104300.0,104290.0,0.63989473]
[1734514416486,0.22099124,104300.0,104290.0,0.92472142]
[1734514416692,0.16305749,104300.0,104290.0,0.63989473]
[1734514417181,0.16305749,104300.0,104290.0,0.63992493]
[1734514417517,0.16305749,104300.0,104290.0,0.92475162]
[1734514418883,0.22099124,104300.0,104290.0,0.92475162]
[1734514419893,0.22099124,104300.0,104290.0,0.92475385]
[1734514420804,0.22099124,104300.0,104290.0,1.08769884]
[1734514421702,0.26894024,104300.0,104290.0,1.08769884]
[1734514423091,0.26894024,104300.0,104290.0,1.08767175]
[1734514423799,0.26894024,104300.0,104290.0,0.69669036]
[1734514426491,0.42177215,104300.0,104290.0,1.08971301]
[1734514426686,0.24946884,104300.0,104290.0,1.08971301]
[1734514427399,0.2685202,104300.0,104290.0,1.08971301]
[1734514428183,0.2685202,104300.0,104290.0,0.92508422]
[1734514429291,0.2685202,104300.0,104290.0,0.92507553]
[1734514429603,0.2685202,104300.0,104290.0,0.64024884]
[1734514429902,0.32645395,104300.0,104290.0,0.59230084]
[1734514430086,0.78357117,104300.0,104290.0,0.23150084]
[1734514430291,0.78357117,104300.0,104290.0,0.17441088]
[1734514430697,0.61126786,104300.0,104290.0,0.00310698]
[1734514431284,0.66920161,104300.0,104290.0,0.00310698]
[1734514431690,0.84169562,104300.0,104290.0,0.00310698]
[1734514431997,0.66920161,104300.0,104290.0,0.00310698]
[1734514432390,0.96920161,104300.0,104280.0,0.1713039]
[1734514432588,0.37133633,104290.0,104280.0,0.17441327]
[1734514433000,0.73213633,104290.0,104280.0,0.00310937]
[1734514433195,0.73213633,104290.0,104270.0,0.5321039]
[1734514433196,0.047958,104280.0,104270.0,0.5321039]
[1734514433412,0.51262799,104280.0,104260.0,2.38621937]
[1734514433697,0.30696307,104270.0,104260.0,2.38557937]
[1734514434294,0.30696307,104270.0,104260.0,2.38607937]
[1734514435302,0.30696307,104270.0,104260.0,2.38414099]
[1734514435490,0.24902932,104270.0,104260.0,2.37436276]
[1734514435692,0.30696307,104270.0,104260.0,2.40656276]
[1734514436290,0.30696307,104270.0,104260.0,2.40706276]
[1734514436890,0.72576915,104270.0,104260.0,0.40019776]
[1734514437295,0.76046915,104270.0,104260.0,0.39969776]
[1734514437493,0.76046915,104270.0,104260.0,0.1713039]
[1734514437898,0.67429787,104270.0,104260.0,0.1713039]
[1734514438094,0.61636412,104270.0,104260.0,0.1713039]
[1734514438299,0.61636412,104270.0,104260.0,0.1718039]
[1734514438502,0.62609509,104270.0,104260.0,0.1718039]
[1734514438806,0.68402884,104270.0,104260.0,0.1718039]
[1734514439195,0.62609509,104270.0,104260.0,0.1718039]
[1734514439395,0.62609509,104270.0,104260.0,0.1713039]
[1734514440302,0.62609509,104270.0,104260.0,0.1718039]
[1734514441407,0.68402884,104270.0,104260.0,0.1718039]
[1734514441612,0.5691338,104270.0,104260.0,0.1718039]
[1734514442291,0.5691338,104270.0,104260.0,0.1713039]